bitfinex/quotes_SOLUSD_20230116
["timestamp","ask_amount","ask_price","bid_price","bid_amount"]
[1673910066329,118.9333,23.699,23.681,21.87245]
[1673910066536,118.9333,23.699,23.681,4.87245]
[1673910066763,10.0,23.698,23.682,17.0]
[1673910066965,10.0,23.698,23.683,4.87204]
[1673910067174,10.0,23.698,23.684,17.0]
[1673910067388,118.9333,23.699,23.684,17.0]
[1673910067605,118.9333,23.699,23.685,4.87163]
[1673910067816,118.9333,23.699,23.686,10.0]
[1673910068032,118.9333,23.699,23.686,14.87142]
[1673910068231,118.9333,23.699,23.686,31.87142]
[1673910068441,118.9333,23.699,23.687,17.0]
[1673910069487,118.9333,23.699,23.686,4.87142]
[1673910070118,26.14,23.71,23.686,4.87142]
[1673910070336,16.13,23.72,23.687,26.33318354]
[1673910070656,16.13,23.72,23.688,26.33297354]
[1673910070851,20.0,23.711,23.689,31.8708]
[1673910071060,20.0,23.711,23.691,10.0]
[1673910071271,20.0,23.711,23.692,21.87019]
[1673910071595,20.0,23.711,23.693,4.86998]
[1673910071796,10.0,23.71,23.694,17.0]
[1673910072013,10.0,23.71,23.694,21.86978]
[1673910074118,10.0,23.71,23.695,4.86957]
[1673910074323,10.0,23.71,23.696,17.0]
[1673910074529,20.0,23.711,23.697,4.86916]
[1673910074738,20.0,23.711,23.698,27.0]
[1673910074948,20.0,23.711,23.699,4.86875]
[1673910075281,20.0,23.711,23.7,17.0]
[1673910075472,20.0,23.711,23.701,4.86834]
[1673910075678,20.0,23.718,23.702,17.0]
[1673910076224,10.0,23.717,23.689,118.0689]
[1673910076419,20.0,23.716,23.69,24.8706]
[1673910076629,10.0,23.709,23.691,4.87039]
[1673910077464,10.0,23.715,23.692,10.0]
[1673910077692,20.0,23.714,23.693,4.86998]
[1673910078102,10.0,23.713,23.695,10.0]
[1673910078314,10.0,23.713,23.694,17.0]
[1673910078315,20.0,23.712,23.696,21.86937]
[1673910078525,10.0,23.711,23.697,4.86916]
[1673910078734,10.0,23.711,23.698,17.0]
[1673910079478,10.0,23.711,23.697,4.86916]
[1673910079670,57.59196354,23.71,23.674,10.0]
[1673910079878,10.0,23.709,23.674,10.0]
[1673910080092,20.0,23.708,23.684,21.46196354]
[1673910080408,20.0,23.708,23.685,4.87163]
[1673910080642,10.0,23.707,23.686,10.0]
[1673910080847,20.0,23.706,23.687,4.87122]
[1673910081050,20.0,23.706,23.687,26.33318354]
[1673910081253,10.0,23.705,23.687,26.33318354]
[1673910081467,20.0,23.704,23.688,17.0]
[1673910081681,20.0,23.704,23.689,14.8708]
[1673910081897,20.0,23.704,23.69,17.0]
[1673910082934,20.0,23.706,23.69,17.0]
[1673910083897,10.0,23.714,23.691,10.0]
[1673910084105,10.0,23.71,23.692,21.87019]
[1673910084294,10.0,23.71,23.693,4.86998]
[1673910084507,10.0,23.71,23.693,14.86998]
[1673910084735,10.0,23.71,23.694,17.0]
[1673910084960,10.0,23.71,23.695,4.86957]
[1673910085164,10.0,23.71,23.696,17.0]
[1673910085561,10.0,23.711,23.696,17.0]
[1673910085775,10.0,23.714,23.697,4.86916]
[1673910085990,10.0,23.711,23.698,17.0]
[1673910087665,16.16,23.71,23.69,10.0]
[1673910088108,16.16,23.71,23.691,115.0581]
[1673910088505,10.0,23.709,23.691,115.0581]
[1673910089281,10.0,23.709,23.692,17.0]
[1673910090300,10.0,23.709,23.683,112.9366]
[1673910090627,10.0,23.709,23.684,24.87183]
[1673910090829,10.0,23.709,23.685,4.87163]
[1673910091672,10.0,23.709,23.686,17.0]
[1673910091864,20.0,23.708,23.686,21.87142]
[1673910092074,10.0,23.707,23.686,21.87142]
[1673910092301,20.0,23.706,23.686,21.87142]
[1673910092493,10.0,23.705,23.686,21.87142]
[1673910092704,20.0,23.704,23.686,21.87142]
[1673910093139,10.0,23.703,23.686,21.87142]
[1673910093356,20.0,23.702,23.687,4.87122]
[1673910093544,10.0,23.701,23.688,17.0]
[1673910093755,10.0,23.701,23.688,21.87101]
[1673910093968,10.0,23.703,23.688,21.87101]
[1673910094195,20.0,23.702,23.688,21.87101]
[1673910094812,20.0,23.702,23.689,4.8708]
[1673910095018,10.0,23.719,23.69,17.0]
[1673910095245,10.0,23.716,23.691,4.87039]
[1673910095555,10.0,23.716,23.692,17.0]
[1673910095761,10.0,23.716,23.693,4.86998]
[1673910095987,10.0,23.716,23.694,17.0]
[1673910096170,10.0,23.716,23.695,4.86957]
[1673910096381,10.0,23.716,23.696,17.0]
[1673910096729,10.0,23.716,23.697,4.86916]
[1673910096932,10.0,23.716,23.698,17.0]
[1673910097871,16.14,23.71,23.698,17.0]
[1673910098066,20.0,23.708,23.688,21.46196354]
[1673910098497,10.0,23.707,23.688,21.46196354]
[1673910098718,20.0,23.706,23.688,21.46196354]
[1673910099112,10.0,23.705,23.688,21.46196354]
[1673910099324,10.0,23.703,23.685,10.0]
[1673910099532,20.0,23.702,23.686,4.87142]
[1673910099951,20.0,23.702,23.686,26.33338354]
[1673910100292,20.0,23.702,23.687,10.0]
[1673910100819,20.0,23.702,23.688,17.0]
[1673910103034,20.0,23.702,23.689,31.46196354]
[1673910103335,20.0,23.704,23.69,21.8706]
[1673910104097,10.0,23.707,23.691,10.0]
[1673910104280,10.0,23.707,23.692,21.87019]
[1673910105874,10.0,23.707,23.692,4.87019]
[1673910106804,10.0,23.707,23.693,21.46196354]
[1673910107021,16.16,23.73,23.694,4.86978]
[1673910107343,394.3,23.716,23.696,10.0]
[1673910107542,505.5908,23.728,23.697,41.86916]
[1673910107753,20.0,23.723,23.698,4.86896]
[1673910108072,10.0,23.722,23.7,10.0]
[1673910108265,20.0,23.721,23.701,41.86834]
[1673910108686,10.0,23.72,23.702,49.85776424]
[1673910108910,10.0,23.72,23.703,21.86793]
[1673910109127,10.0,23.72,23.704,4.86772]
[1673910109340,10.0,23.72,23.705,17.0]
[1673910109544,10.0,23.72,23.706,4.86731]
[1673910109757,10.0,23.72,23.707,17.0]
[1673910110178,20.0,23.721,23.707,17.0]
[1673910110387,19.89503438,23.721,23.707,21.86711]
[1673910110796,19.89503438,23.721,23.708,4.8669]
[1673910111015,115.3826,23.725,23.709,17.0]
[1673910111249,410.53,23.74,23.711,10.0]
[1673910111436,10.0,23.736,23.712,21.86608]
[1673910111634,10.0,23.736,23.713,4.86588]
[1673910111845,10.0,23.736,23.714,17.0]
[1673910112069,10.0,23.736,23.715,4.86546]
[1673910112286,20.0,23.735,23.716,17.0]
[1673910112606,10.0,23.734,23.716,72.74234177]
[1673910112910,20.0,23.733,23.717,50.87708177]
[1673910113122,20.0,23.733,23.718,17.0]
[1673910113329,10.0,23.732,23.716,17.0]
[1673910113542,10.0,23.73,23.716,17.0]
[1673910117335,10.0,23.73,23.71,21.46196354]
[1673910117526,26.13,23.73,23.711,4.86629]
[1673910117741,26.13,23.73,23.7,16.14]
[1673910117742,20.0,23.729,23.703,21.46196354]
[1673910117960,20.0,23.729,23.704,4.86772]
[1673910118157,10.0,23.728,23.704,14.86772]
[1673910118365,20.0,23.727,23.705,21.46196354]
[1673910118690,20.0,23.727,23.704,4.86772]
[1673910118691,10.0,23.726,23.704,4.86772]
[1673910118907,20.0,23.725,23.704,4.86772]
[1673910119118,10.0,23.724,23.704,4.86772]
[1673910119323,20.0,23.723,23.704,4.86772]
[1673910119752,10.0,23.722,23.704,4.86772]
[1673910119940,20.0,23.721,23.704,4.86772]
[1673910120152,10.0,23.72,23.704,4.86772]
[1673910120900,10.0,23.72,23.705,17.0]
[1673910121834,20.0,23.721,23.705,17.0]
[1673910122061,10.0,23.73,23.706,4.86731]
[1673910122271,10.0,23.73,23.707,27.0]
[1673910122485,10.0,23.73,23.708,24.8669]
[1673910122669,10.0,23.73,23.709,21.8667]
[1673910122885,10.0,23.73,23.71,24.86649]
[1673910123095,10.0,23.73,23.711,21.86629]
[1673910123640,10.0,23.73,23.712,26.32804354]
[1673910123848,10.0,23.73,23.713,31.86588]
[1673910124169,10.0,23.73,23.714,4.86567]
[1673910124351,10.0,23.73,23.715,17.0]
[1673910124568,10.0,23.73,23.716,4.86526]
[1673910124784,10.0,23.73,23.717,17.0]
[1673910125000,10.0,23.73,23.718,4.86485]
[1673910125313,10.0,23.73,23.719,17.0]
[1673910125535,10.0,23.73,23.719,67.6465451]
[1673910125846,10.0,23.73,23.719,21.86464]
[1673910127294,10.0,23.737,23.719,21.86464]
[1673910127504,410.46,23.74,23.719,21.86464]
[1673910127505,394.3,23.74,23.72,24.86444]
[1673910127715,394.3,23.74,23.721,4.86423]
[1673910127937,394.3,23.74,23.721,112.51149953]
[1673910128145,394.3,23.74,23.722,74.11102776]
[1673910128465,394.3,23.752,23.724,41.96]
[1673910128671,394.3,23.752,23.726,41.96]
[1673910128875,394.3,23.752,23.727,63.823]
[1673910129087,10.0,23.75,23.728,34.8628]
[1673910129306,10.0,23.75,23.729,21.86259]
[1673910129501,10.0,23.75,23.73,24.86239]
[1673910129706,10.0,23.75,23.732,10.0]
[1673910129922,10.0,23.75,23.733,4.86177]
[1673910130147,10.0,23.75,23.734,17.0]
[1673910130363,10.0,23.75,23.735,4.86136]
[1673910130569,10.0,23.75,23.736,17.0]
[1673910130757,114.5136,23.751,23.737,4.86096]
[1673910130974,10.0,23.759,23.739,10.0]
[1673910131178,10.0,23.759,23.74,21.86034]
[1673910131511,10.0,23.759,23.741,14.86014]
[1673910131708,10.0,23.76,23.742,21.85993]
[1673910131918,10.0,23.76,23.743,4.85973]
[1673910132126,10.0,23.76,23.744,17.0]
[1673910132336,10.0,23.76,23.745,4.85932]
[1673910132557,10.0,23.76,23.746,17.0]
[1673910133608,10.0,23.763,23.746,17.0]
[1673910133843,10.0,23.763,23.747,4.85891]
[1673910134031,10.0,23.763,23.748,17.0]
[1673910135411,10.0,23.761,23.749,4.8585]
[1673910135716,10.0,23.761,23.75,17.0]
[1673910135925,10.0,23.761,23.75,21.85829]
[1673910136247,20.0,23.762,23.751,4.85809]
[1673910136441,20.0,23.763,23.752,17.0]
[1673910136770,20.0,23.763,23.754,10.0]
[1673910136980,20.0,23.771,23.755,21.85727]
[1673910137184,20.0,23.771,23.756,4.85707]
[1673910137394,20.0,23.771,23.757,17.0]
[1673910137619,10.0,23.77,23.755,47.8695751]
[1673910137812,20.0,23.769,23.755,47.8695751]
[1673910138015,10.0,23.768,23.755,47.8695751]
[1673910138341,20.0,23.767,23.755,47.8695751]
[1673910138558,20.0,23.767,23.755,52.7268451]
[1673910138971,20.0,23.767,23.756,17.0]
[1673910139382,10.0,23.766,23.755,47.8695751]
[1673910139595,20.0,23.765,23.748,10.0]
[1673910139832,20.0,23.765,23.75,10.0]
[1673910140035,20.0,23.765,23.751,4.85809]
[1673910140349,20.0,23.765,23.751,52.0040851]
[1673910140562,20.0,23.765,23.751,85.73687067]
[1673910140880,10.0,23.764,23.743,119.5948]
[1673910141080,10.0,23.764,23.732,10.0]
[1673910141081,16.14,23.76,23.732,10.0]
[1673910141287,16.23,23.75,23.733,4.86177]
[1673910141486,16.23,23.75,23.721,109.8646]
[1673910142223,20.0,23.749,23.721,109.8646]
[1673910142447,20.0,23.749,23.723,4.86382]
[1673910142652,16.13,23.74,23.723,4.86382]
[1673910142863,10.0,23.739,23.718,10.0]
[1673910143074,20.0,23.738,23.715,10.0]
[1673910143290,20.0,23.738,23.715,14.86546]
[1673910143920,10.0,23.737,23.715,14.86546]
[1673910144136,20.0,23.736,23.715,14.86546]
[1673910144659,10.0,23.735,23.715,14.86546]
[1673910145282,20.0,23.734,23.715,14.86546]
[1673910145816,20.0,23.736,23.715,14.86546]
[1673910146025,20.0,23.736,23.716,17.0]
[1673910146233,20.0,23.736,23.717,10.0]
[1673910146439,10.0,23.735,23.718,17.0]
[1673910146762,20.0,23.734,23.718,17.0]
[1673910147179,20.0,23.736,23.718,17.0]
[1673910147587,20.0,23.737,23.718,17.0]
[1673910147792,20.0,23.737,23.719,4.86464]
[1673910148008,20.0,23.737,23.72,17.0]
[1673910148229,10.0,23.736,23.72,17.0]
[1673910148440,20.0,23.737,23.72,17.0]
[1673910148874,26.13,23.75,23.721,21.46196354]
[1673910149194,20.0,23.747,23.722,21.86403]
[1673910149505,26.13,23.75,23.723,26.32578354]
[1673910149719,26.13,23.75,23.725,10.0]
[1673910149899,26.13,23.75,23.726,21.86321]
[1673910150110,26.13,23.75,23.728,10.0]
[1673910150315,26.13,23.75,23.729,21.86259]
[1673910150530,16.13,23.75,23.731,10.0]
[1673910150759,16.13,23.75,23.732,17.0]
[1673910151816,10.0,23.749,23.732,17.0]
[1673910151998,10.0,23.749,23.731,17.0]
[1673910152216,20.0,23.748,23.731,17.0]
[1673910152643,10.0,23.747,23.731,17.0]
[1673910152852,20.0,23.746,23.731,17.0]
[1673910154729,16.13,23.75,23.732,10.0]
[1673910154942,10.0,23.754,23.733,17.0]
[1673910155585,45.54196354,23.76,23.733,17.0]
[1673910155806,10.0,23.759,23.734,10.0]
[1673910156009,10.0,23.759,23.735,17.0]
[1673910156340,10.0,23.75,23.735,17.0]
[1673910157785,10.0,23.759,23.735,17.0]
[1673910158196,31.46196354,23.759,23.735,17.0]
[1673910159898,10.0,23.759,23.736,10.0]
[1673910160125,10.0,23.759,23.737,17.0]
[1673910160433,10.0,23.759,23.738,10.0]
[1673910160617,10.0,23.759,23.74,10.0]
[1673910160831,10.0,23.759,23.741,17.0]
[1673910161054,10.0,23.759,23.742,10.0]
[1673910161372,20.0,23.758,23.743,17.0]
[1673910161588,20.0,23.758,23.736,10.0]
[1673910161589,10.0,23.757,23.707,10.0]
[1673910161789,24.08,23.75,23.73,4.86239]
[1673910162003,10.0,23.748,23.73,4.86239]
[1673910162200,20.0,23.747,23.73,4.86239]
[1673910162843,10.0,23.748,23.73,4.86239]
[1673910163049,20.0,23.747,23.73,4.86239]
[1673910163369,10.0,23.746,23.73,4.86239]
[1673910163797,20.0,23.745,23.73,4.86239]
[1673910164318,20.0,23.745,23.731,17.0]
[1673910165061,20.0,23.745,23.732,10.0]
[1673910165371,24.08,23.75,23.733,17.0]
[1673910165561,10.0,23.75,23.734,4.86157]
[1673910165890,34.06,23.76,23.735,17.0]
[1673910166098,34.06,23.76,23.736,10.0]
[1673910166419,34.06,23.76,23.738,10.0]
[1673910166605,34.06,23.76,23.739,17.0]
[1673910168100,34.01,23.75,23.735,4.86136]
[1673910168312,20.0,23.749,23.726,120.0]
[1673910168523,20.0,23.749,23.718,232.9922]
[1673910168524,10.0,23.748,23.718,232.9922]
[1673910168827,10.0,23.739,23.718,232.9922]
[1673910169788,10.0,23.739,23.72,4.86444]
[1673910169975,10.0,23.739,23.721,10.0]
[1673910170198,10.0,23.739,23.722,17.0]
[1673910170930,10.0,23.739,23.723,10.0]
[1673910171142,24.21,23.74,23.723,10.0]
[1673910171342,10.0,23.744,23.725,10.0]
[1673910171560,10.0,23.744,23.726,17.0]
[1673910171766,20.0,23.743,23.726,17.0]
[1673910172084,10.0,23.742,23.726,17.0]
[1673910172298,20.0,23.741,23.726,17.0]
[1673910173226,20.0,23.741,23.724,17.0]
[1673910173996,20.0,23.741,23.721,10.0]
[1673910174198,24.21,23.74,23.718,120.0]
[1673910174510,20.0,23.739,23.712,10.0]
[1673910174721,27.0,23.738,23.71,130.0]
[1673910174910,27.0,23.738,23.71,120.0]
[1673910174911,24.08,23.73,23.71,120.0]
[1673910175124,20.0,23.729,23.71,120.0]
[1673910175336,10.0,23.728,23.71,120.0]
[1673910175757,10.0,23.719,23.699,10.0]
[1673910175981,10.0,23.719,23.699,4.86875]
[1673910176190,24.06,23.71,23.698,120.0]
[1673910176411,24.06,23.71,23.694,120.0]
[1673910176592,17.0,23.709,23.694,120.0]
[1673910176927,10.0,23.709,23.694,120.0]
[1673910177139,10.0,23.719,23.695,4.86957]
[1673910177344,24.01,23.72,23.695,46.82957]
[1673910177557,20.0,23.719,23.695,4.86957]
[1673910177762,10.0,23.718,23.695,14.86957]
[1673910178084,20.0,23.717,23.695,14.86957]
[1673910178291,10.0,23.716,23.695,14.86957]
[1673910178606,20.0,23.715,23.695,4.86957]
[1673910178816,20.0,23.715,23.696,17.0]
[1673910179040,10.0,23.714,23.697,10.0]
[1673910179239,20.0,23.713,23.698,17.0]
[1673910179449,20.0,23.713,23.699,10.0]
[1673910179654,20.0,23.713,23.7,17.0]
[1673910179982,20.0,23.715,23.7,17.0]
[1673910180191,20.0,23.717,23.7,17.0]
[1673910181109,10.0,23.719,23.701,10.0]
[1673910181315,10.0,23.719,23.702,17.0]
[1673910181529,10.0,23.717,23.697,10.0]
[1673910181769,20.0,23.716,23.697,10.0]
[1673910182163,24.01,23.71,23.687,10.0]
[1673910182492,24.01,23.71,23.689,10.0]
[1673910182707,24.08,23.73,23.69,48.9006]
[1673910182918,24.08,23.73,23.7,24.0]
[1673910183120,24.08,23.73,23.701,24.86834]
[1673910183442,24.08,23.73,23.702,4.86813]
[1673910183752,114.2239,23.738,23.71,24.14]
[1673910183951,114.2239,23.738,23.711,150.00509]
[1673910184159,114.2239,23.738,23.712,4.86608]
[1673910184377,114.2239,23.738,23.714,10.0]
[1673910184588,114.2239,23.738,23.715,21.86546]
[1673910184796,114.2239,23.738,23.716,24.86526]
[1673910184999,114.2239,23.738,23.717,17.0]
[1673910185425,114.2239,23.738,23.716,10.0]
[1673910185649,114.2239,23.738,23.718,4.86485]
[1673910186173,10.0,23.748,23.718,4.86485]
[1673910186394,10.0,23.748,23.72,24.03]
[1673910186579,10.0,23.748,23.721,41.86423]
[1673910186916,20.0,23.745,23.722,117.2514]
[1673910187118,20.0,23.745,23.723,17.0]
[1673910187429,10.0,23.748,23.724,10.0]
[1673910187642,10.0,23.748,23.725,17.0]
[1673910188822,10.0,23.744,23.724,17.0]
[1673910188998,20.0,23.743,23.723,17.0]
[1673910189330,10.0,23.742,23.723,21.86382]
[1673910189541,24.06,23.74,23.723,4.86382]
[1673910189729,24.06,23.74,23.699,40.012]
[1673910189730,24.08,23.73,23.713,36.98102956]
[1673910190272,24.08,23.73,23.704,109.6274]
[1673910190469,10.0,23.729,23.705,10.0]
[1673910190678,20.0,23.728,23.706,4.86731]
[1673910191213,17.0,23.727,23.706,4.86731]
[1673910191427,30.0,23.726,23.693,41.96]
[1673910191649,10.0,23.726,23.7,28.44658723]
[1673910191845,10.0,23.726,23.701,4.86834]
[1673910192046,10.0,23.724,23.701,4.86834]
[1673910192252,24.01,23.72,23.701,4.86834]
[1673910192463,10.0,23.719,23.701,4.86834]
[1673910193521,10.0,23.719,23.694,109.7178]
[1673910193743,24.21,23.71,23.694,114.58758]
[1673910193983,20.0,23.718,23.695,4.86957]
[1673910194304,10.0,23.717,23.695,4.86957]
[1673910194515,20.0,23.716,23.695,4.86957]
[1673910195014,10.0,23.715,23.695,4.86957]
[1673910195221,20.0,23.714,23.695,4.86957]
[1673910195866,24.06,23.71,23.695,4.86957]
[1673910196072,24.06,23.71,23.683,236.2294]
[1673910196277,24.06,23.71,23.683,116.2294]
[1673910196278,20.0,23.709,23.683,116.2294]
[1673910196597,10.0,23.708,23.684,14.87183]
[1673910196804,20.0,23.707,23.685,4.87163]
[1673910197325,10.0,23.706,23.685,4.87163]
[1673910197769,20.0,23.705,23.685,4.87163]
[1673910197973,10.0,23.704,23.685,4.87163]
[1673910198182,10.0,23.704,23.678,120.0]
[1673910198183,20.0,23.703,23.678,120.0]
[1673910198390,24.06,23.7,23.678,120.0]
[1673910198603,118.1254,23.699,23.67,120.0]
[1673910198814,37.0,23.698,23.671,4.87451]
[1673910199011,20.0,23.698,23.678,120.0]
[1673910199218,10.0,23.697,23.676,120.0]
[1673910199443,24.01,23.69,23.676,120.0]
[1673910199660,24.01,23.69,23.671,4.87451]
[1673910200288,24.01,23.69,23.671,14.87451]
[1673910200900,24.01,23.69,23.672,21.8743]
[1673910201113,10.0,23.695,23.673,4.8741]
[1673910201326,10.0,23.695,23.674,10.0]
[1673910201567,24.01,23.71,23.674,21.10278205]
[1673910201778,24.01,23.71,23.68,24.0]
[1673910202009,24.01,23.71,23.681,4.87245]
[1673910202198,24.06,23.7,23.681,24.87245]
[1673910202717,24.06,23.7,23.681,4.87245]
[1673910203143,10.0,23.699,23.681,4.87245]
[1673910203359,10.0,23.699,23.678,20.0]
[1673910204844,10.0,23.699,23.678,41.46196354]
[1673910205047,10.0,23.699,23.679,10.0]
[1673910205364,24.06,23.7,23.68,37.0]
[1673910205578,24.01,23.71,23.681,4.87245]
[1673910205785,24.01,23.71,23.682,17.0]
[1673910205984,24.01,23.71,23.683,24.87204]
[1673910206187,10.0,23.709,23.684,47.0]
[1673910206405,10.0,23.709,23.684,68.46196354]
[1673910206608,10.0,23.709,23.685,10.0]
[1673910206817,10.0,23.709,23.686,37.0]
[1673910208087,10.0,23.709,23.687,10.0]
[1673910208292,10.0,23.709,23.688,37.0]
[1673910208510,24.21,23.7,23.679,10.0]
[1673910208726,24.21,23.7,23.67,126.51815723]
[1673910209155,10.0,23.699,23.67,120.0]
[1673910209366,127.9603,23.699,23.67,120.0]
[1673910209768,10.0,23.698,23.678,20.0]
[1673910210185,10.0,23.698,23.679,17.0]
[1673910210419,10.0,23.698,23.68,20.0]
[1673910210608,21.46196354,23.697,23.68,20.0]
[1673910210941,20.0,23.696,23.681,17.0]
[1673910211148,10.0,23.695,23.681,17.0]
[1673910211344,127.9603,23.699,23.681,17.0]
[1673910211555,117.9603,23.699,23.681,17.0]
[1673910212186,117.9603,23.699,23.682,10.0]
[1673910212395,117.9603,23.699,23.683,17.0]
[1673910213021,10.0,23.698,23.683,17.0]
[1673910213774,31.46196354,23.698,23.682,4.87224]
[1673910214000,24.08,23.69,23.67,120.0]
[1673910214178,24.08,23.69,23.671,20.0]
[1673910214179,10.0,23.689,23.671,20.0]
[1673910214808,10.0,23.689,23.67,120.0]
[1673910215035,10.0,23.689,23.671,10.0]
[1673910215878,10.0,23.689,23.67,120.0]
[1673910215879,31.46196354,23.689,23.67,120.0]
[1673910216188,10.0,23.689,23.67,120.0]
[1673910217019,10.0,23.689,23.671,20.0]
[1673910217853,10.0,23.689,23.672,27.0]
[1673910218062,24.08,23.69,23.672,27.0]
[1673910218277,117.9603,23.699,23.673,24.8741]
[1673910218494,117.9603,23.699,23.674,21.87389]
[1673910218706,117.9603,23.699,23.675,24.87369]
[1673910219031,10.0,23.698,23.676,21.87348]
[1673910219245,10.0,23.698,23.677,20.0]
[1673910219432,10.0,23.698,23.678,17.0]
[1673910219643,10.0,23.698,23.679,20.0]
[1673910219864,10.0,23.698,23.68,17.0]
[1673910220280,10.0,23.698,23.681,20.0]
[1673910220595,10.0,23.698,23.682,17.0]
[1673910220929,10.0,23.698,23.676,4.87348]
[1673910220930,24.21,23.69,23.676,4.87348]
[1673910221126,24.21,23.69,23.663,10.0]
[1673910221127,10.0,23.689,23.663,10.0]
[1673910221335,24.21,23.69,23.668,4.87513]
[1673910221663,10.0,23.697,23.669,10.0]
[1673910221877,20.0,23.696,23.67,4.87471]
[1673910222062,10.0,23.695,23.67,4.87471]
[1673910222267,20.0,23.694,23.67,4.87471]
[1673910222717,10.0,23.693,23.67,4.87471]
[1673910223026,10.0,23.691,23.671,17.0]
[1673910223238,10.0,23.691,23.671,21.87451]
[1673910223630,10.0,23.691,23.667,115.2835]
[1673910223859,22.51,23.69,23.668,20.0]
[1673910224079,30.0,23.689,23.667,115.2835]
[1673910224287,17.0,23.688,23.667,115.2835]
[1673910224472,10.0,23.689,23.667,115.2835]
[1673910224899,10.0,23.689,23.668,10.0]
[1673910225216,129.331,23.694,23.668,10.0]
[1673910225217,10.0,23.694,23.668,10.0]
[1673910225434,10.0,23.694,23.669,4.87492]
[1673910225649,10.0,23.694,23.67,10.0]
[1673910225858,10.0,23.694,23.671,24.87451]
[1673910226268,10.0,23.694,23.672,17.0]
[1673910226478,20.0,23.693,23.672,17.0]
[1673910226700,20.0,23.693,23.672,21.8743]
[1673910226908,20.0,23.693,23.673,10.0]
[1673910227107,10.0,23.694,23.674,17.0]
[1673910227315,20.0,23.693,23.674,17.0]
[1673910229548,10.0,23.692,23.674,17.0]
[1673910229739,20.0,23.691,23.673,17.0]
[1673910230916,10.0,23.69,23.672,4.8743]
[1673910231114,10.0,23.69,23.669,20.0]
[1673910231750,10.0,23.69,23.667,235.2835]
[1673910231961,10.0,23.688,23.667,235.2835]
[1673910232176,10.0,23.688,23.667,120.0]
[1673910232363,20.0,23.687,23.666,120.0]
[1673910232801,10.0,23.686,23.663,109.029]
[1673910233119,20.0,23.685,23.664,10.0]
[1673910233314,10.0,23.684,23.664,10.0]